{"text_format":"1","workbook":"xlsx","n_sheets":2,"sheets":["Griglia valutazione","Tabelle1"],"not_rendered":{"charts":0,"images":6,"macros":1,"external_links":0,"defined_names":4,"comments":0,"pivot_tables":0},"unopened":[],"bounds":{"document_bytes":16777216,"sheet_cells":100000,"rows_first":2000,"rows_last":500,"rows_between":2000,"halvings":0,"cell_chars":16384,"cell_head_chars":4096},"cells_cut":0,"cells_raw":0,"read":"whole","date_system":"1900"}

{"sheet":"Griglia valutazione","index":0,"n_rows":32,"n_cols":25,"rows_kept":32,"cut":false,"hidden":false,"merged":[[0,1,0,14],[27,1,27,13],[29,1,29,14],[15,14,16,14],[15,13,16,13],[9,13,10,13],[9,14,10,14],[12,1,12,12],[16,9,16,10],[3,7,3,8],[8,1,8,14],[3,4,3,6],[11,11,11,12],[9,3,9,4],[6,1,6,7],[6,8,6,11],[6,12,6,14],[5,12,5,14],[11,3,11,4],[11,9,11,10],[10,11,10,12],[11,7,11,8],[10,7,10,8],[9,7,9,8],[9,9,9,10],[9,11,9,12],[10,5,10,6],[11,5,11,6],[9,1,9,2],[10,1,10,2],[10,9,10,10],[9,5,9,6],[25,7,25,13],[17,7,17,8],[17,9,17,10],[21,7,21,13],[18,13,18,14],[18,1,18,12],[22,7,22,13],[25,1,25,5],[24,7,24,13],[31,1,31,13],[14,1,14,14],[21,1,21,5],[22,1,22,5],[23,1,23,5],[30,1,30,13],[24,1,24,5],[16,3,16,4],[17,3,17,4],[17,5,17,6],[20,1,20,6],[20,7,20,14],[15,3,15,4],[15,5,15,6],[23,7,23,13],[26,1,26,13],[2,1,2,14],[17,11,17,12],[16,1,16,2],[17,1,17,2],[15,1,15,2],[11,1,11,2],[10,3,10,4],[15,7,15,8],[15,9,15,10],[15,11,15,12],[16,5,16,6],[16,7,16,8],[16,11,16,12],[12,13,12,14],[5,8,5,11],[5,1,5,7]]}
[]
[]
[null,"PROVA SCRITTA DI ITALIANO SECONDA LINGUA\nESAME DI STATO - SECONDO CICLO DI ISTRUZIONE\nGriglia di valutazione"]
[null,null,null,null,"Anno scolastico",null,null,"2019/2020"]
[]
[null,"Cognome e nome dell'alunna/dell'alunno",null,null,null,null,null,null,"classe",null,null,null,"data"]
[]
[]
[null,"Compito di ascolto"]
[null,null,null,"1a risposta",null,"2a risposta",null,"3a risposta",null,"4a risposta",null,"5a risposta",null,"risposte\ncorrette","risposte\nnon corrette",null,null,false,false,false,false,false]
[null,"Risposta corretta",null,{"$f":"R14","v":0},null,{"$f":"S14","v":0},null,{"$f":"T14","v":0},null,{"$f":"U14","v":0},null,{"$f":"V14","v":0},null,null,null,null,null,false,false,false,false,false,{"$f":"COUNTIF(R11:V11,TRUE)","v":0},null,0]
[null,"Risposta non corretta",null,null,null,null,null,null,null,null,null,null,null,{"$f":"W11","v":0},{"$f":"W12","v":0},null,null,false,false,false,false,false,{"$f":"COUNTIF(R12:V12,TRUE)","v":0},null,0.05]
[null,"Punteggio per il compito di ascolto (max 2,5 punti)",null,null,null,null,null,null,null,null,null,null,null,{"$f":"TEXT(W14,\"0,00\")&\" / \"&TEXT(W13,\"0,00\")","v":"0,00 / 2,50"},null,null,null,0.5,0.5,0.5,0.5,0.5,{"$f":"SUM(R13:V13)","v":2.5},null,0.1]
[null,null,null,null,null,null,null,null,null,null,null,null,null,null,null,null,null,{"$f":"IF(R11=TRUE,R13,0)","v":0},{"$f":"IF(S11=TRUE,S13,0)","v":0},{"$f":"IF(T11=TRUE,T13,0)","v":0},{"$f":"IF(U11=TRUE,U13,0)","v":0},{"$f":"IF(V11=TRUE,V13,0)","v":0},{"$f":"SUM(R14:V14)","v":0},null,0.15]
[null,"Compito di lettura",null,null,null,null,null,null,null,null,null,null,null,null,null,null,null,null,null,null,null,null,null,null,0.2]
[null,null,null,"1a risposta",null,"2a risposta",null,"3a risposta",null,"4a risposta",null,"5a risposta",null,"risposte\ncorrette","risposte\nnon corrette",null,null,false,false,false,false,false,null,null,0.25]
[null,"Risposta corretta",null,{"$f":"R20","v":0},null,{"$f":"T20","v":0},null,{"$f":"V20","v":0},null,{"$f":"X20","v":0},null,{"$f":"Z20","v":0},null,null,null,null,null,false,false,false,false,false,{"$f":"COUNTIF(R17:V17,TRUE)","v":0},null,0.3]
[null,"Risposta non corretta",null,null,null,null,null,null,null,null,null,null,null,{"$f":"W17","v":0},{"$f":"W18","v":0},null,null,false,false,false,false,false,{"$f":"COUNTIF(R18:V18,TRUE)","v":0}]
[null,"Punteggio per il compito di lettura (max 2,5 punti)",null,null,null,null,null,null,null,null,null,null,null,{"$f":"TEXT(W20,\"0,00\")&\" / \"&TEXT(W19,\"0,00\")","v":"0,00 / 2,50"},null,null,null,0.5,0.5,0.5,0.5,0.5,{"$f":"SUM(R19:V19)","v":2.5}]
[null,null,null,null,null,null,null,null,null,null,null,null,null,null,null,null,null,{"$f":"IF(R17=TRUE,R19,0)","v":0},{"$f":"IF(S17=TRUE,S19,0)","v":0},{"$f":"IF(T17=TRUE,T19,0)","v":0},{"$f":"IF(U17=TRUE,U19,0)","v":0},{"$f":"IF(V17=TRUE,V19,0)","v":0},{"$f":"SUM(R20:V20)","v":0}]
[null,"1° compito di produzione scritta: Scrittura guidata",null,null,null,null,null,"2° compito di produzione scritta: Testo argomentativo"]
[null,"CONTENUTO: pertinenza dei contenuti rispetto alla traccia, ricchezza e qualità delle idee e informazioni, plausibilità, originalità",null,null,null,null,null,"CONTENUTO: pertinenza dei contenuti rispetto alla traccia, ricchezza e qualità delle idee e informazioni, plausibilità, originalità"]
[null,"STRUTTURA: rispetto del genere testuale, articolazione chiara e ordinata del testo, coerenza e coesione, efficacia complessiva del testo",null,null,null,null,null,"STRUTTURA: rispetto del genere testuale, articolazione chiara e ordinata del testo, coerenza e coesione, efficacia complessiva del testo"]
[null,"ESPRESSIONE: proprietà e ricchezza lessicale, uso di un registro adeguato alla tipologia testuale e al destinatario",null,null,null,null,null,"ESPRESSIONE: proprietà e ricchezza lessicale, uso di un registro adeguato alla tipologia testuale e al destinatario"]
[null,"CORRETTEZZA FORMALE: morfologia, sintassi, ortografia e punteggiatura",null,null,null,null,null,"CORRETTEZZA FORMALE: morfologia, sintassi, ortografia e punteggiatura"]
[null,"Punteggio per il 1° compito di produzione scritta \n(max 2 punti)",null,null,null,null,{"$f":"SUM(G22:G25)","v":0},"Punteggio per il 2° compito di produzione scritta \n(max 3 punti)",null,null,null,null,null,null,{"$f":"SUM(O22:O25)","v":0}]
[null,"Valutazione totale senza punteggio aggiuntivo",null,null,null,null,null,null,null,null,null,null,null,null,{"$f":"SUM(W14,W20,G26,O26)","v":0}]
[null,"Punteggio aggiuntivo motivato (max. 0,30 punti)",null,null,null,null,null,null,null,null,null,null,null,null,0]
[null,"Inserire la motivazione:"]
[]
[null,"Valutazione totale con punteggio aggiuntivo",null,null,null,null,null,null,null,null,null,null,null,null,{"$f":"SUM(W14,W20,G26,O26,O28)","v":0},null,null,{"$f":"ROUND(SUM(W14,W20,G26,O26),0)","v":0}]
[null,{"$f":"IF(O31>10,\"Punteggio massimo raggiungibile 10 punti\",\"Valutazione da assegnare\")","v":"Valutazione da assegnare"},null,null,null,null,null,null,null,null,null,null,null,null,{"$f":"ROUND(O31,0)","v":0}]

{"sheet":"Tabelle1","index":1,"n_rows":16,"n_cols":2,"rows_kept":16,"cut":false,"hidden":true,"merged":[]}
[0,0]
[0.05,0.05]
[0.1,0.1]
[0.15,0.15]
[0.2,0.2]
[0.25,0.25]
[0.3,0.3]
[0.35,0.35]
[0.4,0.4]
[0.45,0.45]
[0.5,0.5]
[null,0.55000000000000004]
[null,0.6]
[null,0.65]
[null,0.7]
[null,0.75]